Workbook

Sheet int
B2: Spinta delle terre
B3: NTC 2018

Sheet Coulomb
A1: Teoria del Coulomb | T1: Teoria di Coulomb Charles Augustin de Coulomb nel XVIII secolo studiò la condizione di equilibrio globale di un muro di sostegno immaginando che fosse sollecitato dalla spinta di un cuneo di terreno. Naturalmente non è nota a priori la posizione della superficie di separazione tra il cuneo di terreno sollecitante ed il resto dell'ammasso, quindi è necessario analizzare varie superfici possibili e considerare quella a cui corrisponde il minimo valore, per ricavare la spinta attiva, ovvero il massimo valore, per ricavare la spinta passiva. In seguito altri studiosi generalizzarono la soluzione proposta da Coulomb, ad esempio Mayniel aggiunse la situazione di presenza di attrito tra muro e terreno e Müller-Breslau la condizione di piano campagna e interfaccia tra muro e terreno inclinati, entrambi all'inizio del XX secolo, giungendo alla soluzione (Wikipedia)
J2: parametri geotecnici
A3: Peso Specifico | B3: Angolo attrito | C3: Ang.attrito terra-muro | D3: coesione | E3: coef. attrito terra-fond. | F3: alt. Terrapieno | G3: sovraccarico | H3: altezza sovraccarico
A4: γt,k | B4: φk | C4: δk | D4: c | F4: h | G4: qk | H4: h'= qk/γt,d | L4: frad | M4: d rad
A5: kN/m3 | B5: deg. | C5: deg. | D5: kN/m2 | F5: m | G5: kN/m² | H5: m
A6: 16 | B6: 32 | C6: 0 | D6: 0 | F6: 4.5 | G6: 4 | H6: =G6/I21 -> 0.25 | L6: =A6*PI()/180 -> 0.2792526803
J20: Approccio 2, con la combinazione (A1+M1+R3),
D21: peso specifico terreno di progetto → | H21: =CONCATENATE("γt,d = γt,k / γγ = ",FIXED(A6),"/1 =") -> γt,d = γt,k / γγ = 16,00/1 = | I21: =A6/1 -> 16 | J21: kN/m³
D22: angolo di attrito di progetto → | H22: =CONCATENATE("φd = arctan[tan(φk)/γφ'] = arctan[tan(",FIXED(A6,3),")/1)] =") -> φd = arctan[tan(φk)/γφ'] = arctan[tan(16,000)/1)] = | I22: =DEGREES(ATAN((TAN(RADIANS(B6)/1)))) -> 32 | J22: deg | Q22: parametri geotecnici | S22: Coefficiente parziale γM₁
D23: coefficiente di spinta attiva → | H23: =CONCATENATE("ka = tan²(π/4 -φd/2) = tan²(45 - ",FIXED(I22),"/2) =") -> ka = tan²(π/4 -φd/2) = tan²(45 - 32,00/2) = | I23: =(TAN(PI()/4-RADIANS(I22)/2))^2 -> 0.3072585245 | Q23: Tangente dell’angolo di resistenza al taglio → | R23: tan ϕ′k | S23: 1
Q24: Coesione efficace → | R24: c′k | S24: 1
D25: Carichi permanenti G₁ → | H25: γG₁ = | I25: 1.3 | Q25: Resistenza non drenata → | R25: cuk | S25: 1
D26: Azioni variabili Qi → | H26: γQ = | I26: 1.5 | Q26: Peso dell’unità di volume → | R26: γγ | S26: 1
D28: spinta delle terre → | H28: =CONCATENATE("S = γG₁∙(½∙γt,d∙h²∙ka) = ",I25,"x(½x",FIXED(I21),"x",FIXED(F6),"²x",FIXED(I23,4)," =") -> S = γG₁∙(½∙γt,d∙h²∙ka) = 1,3x(½x16,00x4,50²x0,3073 = | I28: =I25*0.5*I21*F6^2*I23 -> 64.70864526 | J28: kN
H29: =CONCATENATE("y = h/3 = ",FIXED(F6),"/3=") -> y = h/3 = 4,50/3= | I29: =F6/3 -> 1.5 | J29: m
D31: spinta sovraccarico → | H31: =CONCATENATE("Ss = γQ₁∙(γt,d∙h∙h'∙ka) = ",I26,"x(",FIXED(I21),"x",FIXED(F6),"x",FIXED(H6),"x",FIXED(I23,4),") =") -> Ss = γQ₁∙(γt,d∙h∙h'∙ka) = 1,5x(16,00x4,50x0,25x0,3073) = | I31: =I26*I21*F6*H6*I23 -> 8.295980162 | J31: kN
H32: =CONCATENATE("y₁ = h/2 = ",FIXED(F6),"/2=") -> y₁ = h/2 = 4,50/2= | I32: =F6/2 -> 2.25 | J32: m

Sheet Muller
A1: Teoria del Muller-Breslau (estensione t. Coulomb)
A3: Dati parametri Geotecnici
A4: f | B4: d | C4: a | D4: b | E4: e | H4: gt | I4: q | J4: h | K4: h' = q/gt | L4: a | M4: b | N4: c=h∙tan(α)
A5: deg | B5: deg | C5: deg | D5: deg | E5: deg | H5: kN/m3 | I5: kN/m2 | J5: m | K5: m | L5: m | M5: m | N5: m
A6: 32 | B6: 21.3 | C6: 0 | D6: =90-C6 -> 90 | E6: 20 | H6: 20 | I6: 10 | J6: 3.9 | K6: =I6/H6 -> 0.5 | L6: 0 | M6: 0 | N6: =J6*TAN(C6) -> 0
A7: =FIXED(A6) -> 32,00 | B7: =FIXED(B6) -> 21,30 | C7: 0,00 | D7: 90,00 | E7: 20,00
A8: =A6*PI()/180 -> 0.5585053606 | B8: =B6*PI()/180 -> 0.3717551307 | C8: =C6*PI()/180 -> 0 | D8: =D6*PI()/180 -> 1.570796327 | E8: =E6*PI()/180 -> 0.3490658504 | H8: =FIXED(H6) -> 20,00 | I8: 10,00 | J8: 3,90 | K8: 0,50 | L8: 0,00 | M8: 0,00 | N8: 0,00
J21: Approccio 2, con la combinazione (A1+M1+R3),
D22: peso specifico terreno di progetto → | I22: =CONCATENATE("γt,d = γt,k / γγ = ",FIXED(H8),"/1 =") -> γt,d = γt,k / γγ = 20,00/1 = | J22: =H6/1 -> 20 | K22: kN/m³ | P22: f'k = | Q22: 32 | R22: deg
D23: angolo di attrito terra-muro di progetto → | I23: =CONCATENATE("δd = arctan[tan(δk)/γφ'] = arctan[tan(",FIXED(B7,3),")/1)] =") -> δd = arctan[tan(δk)/γφ'] = arctan[tan(21,300)/1)] = | J23: =DEGREES(ATAN((TAN(RADIANS(B6)/1)))) -> 21.3 | K23: deg | P23: gk = | Q23: 20 | R23: kN/m3
D24: angolo di attrito interno di progetto → | I24: =CONCATENATE("φd = arctan[tan(φk)/γφ'] = arctan[tan(",FIXED(A7,3),")/1)] =") -> φd = arctan[tan(φk)/γφ'] = arctan[tan(32,000)/1)] = | J24: =DEGREES(ATAN((TAN(RADIANS(A6)/1)))) -> 32 | K24: deg | P24: dk = 0.75 f'k = | Q24: 24 | R24: deg
D25: Coefficiente spinta attiva → | P25: gbk = | Q25: 25 | R25: kN/m3
P26: qk = | Q26: 10 | R26: kPa
J31: =CONCATENATE("= sen²(",D7,"+",A7,") / {sen²(",D7,") x sen(",A7,"-",B7,") x [1+√[sen(",A7,"+",B7,") x sen(",A7,"-",E7,")] / [sen(",D7,"-",B7,") x sen(",D7,"+",E7,")] ]² } =") -> = sen²(90,00+32,00) / {sen²(90,00) x sen(32,00-21,30) x [1+√[sen(32,00+21,30) x sen(32,00-20,00)] / [sen(90,00-21,30) x sen(90,00+20,00)] ]² } = | K31: =(SIN(D8+A8))^2 /((SIN(D8))^2 * SIN(D8-B8) * (1+SQRT((SIN(A8+B8)*SIN(A8-E8)/(SIN(D8-B8)*SIN(D8+E8)))))^2) -> 0.3741512428
J37: =CONCATENATE("= cos²(",A7,"-",C7,") / {cos²(",C7,") x cos(",C7,"+",B7,") x [1+√[sen(",A7,"+",B7,") x sen(",A7,"-",E7,")] / [cos(",C7,"+",B7,") x cos(",C7,"-",E7,")] ]² } =") -> = cos²(32,00-0,00) / {cos²(0,00) x cos(0,00+21,30) x [1+√[sen(32,00+21,30) x sen(32,00-20,00)] / [cos(0,00+21,30) x cos(0,00-20,00)] ]² } = | K37: =(COS(A8-C8))^2 /((COS(C8))^2 * COS(C8+B8) * (1+SQRT((SIN(A8+B8)*SIN(A8-E8)/(COS(C8+B8)*COS(C8-E8)))))^2) -> 0.3741512428
D39: Carichi permanenti G₁ → | J39: γG₁ = | K39: 1.3
D40: Azioni variabili Qi → | J40: γQ = | K40: 1.5
D42: spinta delle terre → | I42: =CONCATENATE("S = γG₁∙(½∙γt,d∙h²∙ka) = ",K39,"x(½x",FIXED(J22),"x",FIXED(J6),"²x",FIXED(K31,4)," =") -> S = γG₁∙(½∙γt,d∙h²∙ka) = 1,3x(½x20,00x3,90²x0,3742 = | J42: =K39*0.5*J22*J6^2*K31 -> 73.98092525 | K42: kN
D44: spinta delle terre "componente orizzontale"→ | I44: =CONCATENATE("Sx = S∙cos(α+δ) = ",FIXED(J42),"xcos(",C7,"+",B7,") =") -> Sx = S∙cos(α+δ) = 73,98xcos(0,00+21,30) = | J44: =J42*COS(C8+B8) -> 68.92737906 | K44: kN
I45: =CONCATENATE("y = h/3 = ",FIXED(J8),"/3=") -> y = h/3 = 3,90/3= | J45: =J6/3 -> 1.3 | K45: m
D47: spinta delle terre "componente verticale"→ | I47: =CONCATENATE("Sy = S∙sen(α+δ) = ",FIXED(J42),"xsen(",C7,"+",B7,") =") -> Sy = S∙sen(α+δ) = 73,98xsen(0,00+21,30) = | J47: =J42*SIN(C8+B8) -> 26.87366213 | K47: kN
I48: =CONCATENATE("x = a+b+2/3∙c = ",FIXED(L8),"+",M8,"+2/3x",FIXED(N8)," =") -> x = a+b+2/3∙c = 0,00+0,00+2/3x0,00 = | J48: =L8+M8+2/3*N8 -> 0 | K48: m
D50: spinta sovraccarico → | I50: =CONCATENATE("Ss = γQ₁∙(γt,d∙h∙h'∙ka) = ",K40,"x(",FIXED(H8),"x",FIXED(J8),"x",FIXED(K8),"x",FIXED(K31,4),") =") -> Ss = γQ₁∙(γt,d∙h∙h'∙ka) = 1,5x(20,00x3,90x0,50x0,3742) = | J50: =H6*J6*K6*K31 -> 14.59189847 | K50: kN
I52: =CONCATENATE("Ssx = Ss∙cos(α+δ) = ",FIXED(J50),"xcos(",C7,"+",B7,") =") -> Ssx = Ss∙cos(α+δ) = 14,59xcos(0,00+21,30) = | J52: =J50*COS(C8+B8) -> 13.5951438 | K52: kN
I53: =CONCATENATE("y = h/2 = ",FIXED(J8),"/2=") -> y = h/2 = 3,90/2= | J53: =J6/2 -> 1.95 | K53: m
I55: =CONCATENATE("Ssy = Ss∙sen(α+δ) = ",FIXED(J50),"xsen(",C7,"+",B7,") =") -> Ssy = Ss∙sen(α+δ) = 14,59xsen(0,00+21,30) = | J55: =J50*SIN(C8+B8) -> 5.300525075 | K55: kN
I56: =CONCATENATE("x = a+b+c/2 = ",FIXED(L8),"+",M8,"+",FIXED(N8),"/2 =") -> x = a+b+c/2 = 0,00+0,00+0,00/2 = | J56: =L8+M8+N8/2 -> 0 | K56: m

Sheet Rankine
A1: Teoria del Rankine
A2: Dati parametri Geotecnici
A3: f | B3: d | C3: a | D3: b | E3: e | H3: gt | I3: q | J3: h | K3: h' = q/gt | L3: a | M3: b | N3: c=h∙tan(α)
A4: deg | B4: deg | C4: deg | D4: deg | E4: deg | H4: kN/m3 | I4: kN/m2 | J4: m | K4: m | L4: m | M4: m | N4: m
A5: 30 | E5: 10 | H5: 16 | I5: 5 | J5: 3.9 | K5: =I5/H5 -> 0.3125 | L5: 0 | M5: 0 | N5: =J5*TAN(C5) -> 0
A6: =FIXED(A5) -> 30,00 | B6: =FIXED(B5) -> 0,00 | C6: 0,00 | D6: 0,00 | E6: =FIXED(E5) -> 10,00 | H6: =FIXED(H5) -> 16,00 | I6: 5,00 | J6: 3,90 | K6: 0,31 | L6: 0,00 | M6: 0,00 | N6: 0,00
A7: =RADIANS(A5) -> 0.5235987756 | B7: =B5*PI()/180 -> 0 | C7: =C5*PI()/180 -> 0 | D7: =D5*PI()/180 -> 0 | E7: =RADIANS(E5) -> 0.1745329252
J19: Approccio 2, con la combinazione (A1+M1+R3),
D20: peso specifico terreno di progetto → | I20: =CONCATENATE("γt,d = γt,k / γγ = ",FIXED(H6),"/1 =") -> γt,d = γt,k / γγ = 16,00/1 = | J20: =H5/1 -> 16 | K20: kN/m³
D21: angolo di attrito terra-muro di progetto → | I21: =CONCATENATE("δd = arctan[tan(δk)/γφ'] = arctan[tan(",FIXED(A6,3),")/1)] =") -> δd = arctan[tan(δk)/γφ'] = arctan[tan(30,000)/1)] = | J21: =DEGREES(ATAN((TAN(RADIANS(B6)/1)))) -> 0 | K21: deg
D22: angolo di attrito interno di progetto → | I22: =CONCATENATE("φd = arctan[tan(φk)/γφ'] = arctan[tan(",FIXED(A6,3),")/1)] =") -> φd = arctan[tan(φk)/γφ'] = arctan[tan(30,000)/1)] = | J22: =DEGREES(ATAN((TAN(RADIANS(A5)/1)))) -> 30 | K22: deg
P24: =COS(0) -> 1
D25: Coefficiente spinta attiva → | P25: =SIN(PI()/2) -> 1
J27: =CONCATENATE("= cos(",E6," x {cos(",E6," - √[cos²(",E6,")-cos²(",A6,")]} / {cos(",E6," + √[cos²(",E6,") - cos²(",A6,")]} =") -> = cos(10,00 x {cos(10,00 - √[cos²(10,00)-cos²(30,00)]} / {cos(10,00 + √[cos²(10,00) - cos²(30,00)]} = | K27: =COS(E7)*(COS(E7)-SQRT((COS(E7))^2-(COS(A7))^2))/(COS(E7)+SQRT((COS(E7))^2-(COS(A7))^2)) -> 0.3495198338
D29: Carichi permanenti G₁ → | J29: γG₁ = | K29: 1.3
D30: Azioni variabili Qi → | J30: γQ = | K30: 1.5
D32: spinta delle terre → | I32: =CONCATENATE("S = γG₁∙(½∙γt,d∙h²∙ka) = ",K29,"x(½x",FIXED(J20),"x",FIXED(J6),"²x",FIXED(K27,4)," =") -> S = γG₁∙(½∙γt,d∙h²∙ka) = 1,3x(½x16,00x3,90²x0,3495 = | J32: =K29*0.5*J20*J5^2*K27 -> 55.28844539 | K32: kN
D34: spinta delle terre "componente orizzontale"→ | I34: =CONCATENATE("Sx = S∙cos(ε) = ",FIXED(J32),"xcos(",E6,") =") -> Sx = S∙cos(ε) = 55,29xcos(10,00) = | J34: =J32*COS(E7) -> 54.44848967 | K34: kN
I35: =CONCATENATE("y = h/3 = ",FIXED(J6),"/3=") -> y = h/3 = 3,90/3= | J35: =J5/3 -> 1.3 | K35: m
D37: spinta delle terre "componente verticale"→ | I37: =CONCATENATE("Sy = S∙sen(ε) = ",FIXED(J32),"xsen(",E6,") =") -> Sy = S∙sen(ε) = 55,29xsen(10,00) = | J37: =J32*SIN(E7) -> 9.600737788 | K37: kN
I38: =CONCATENATE("x = a+b+2/3∙c = ",FIXED(L6),"+",M6,"+2/3x",FIXED(N6)," =") -> x = a+b+2/3∙c = 0,00+0,00+2/3x0,00 = | J38: =L5+M5+2/3*N5 -> 0 | K38: m
D40: spinta sovraccarico → | I40: =CONCATENATE("Ss = γQ₁∙(γt,d∙h∙h'∙ka) = ",K30,"x(",FIXED(H6),"x",FIXED(J6),"x",FIXED(K6),"x",FIXED(K27,4),") =") -> Ss = γQ₁∙(γt,d∙h∙h'∙ka) = 1,5x(16,00x3,90x0,31x0,3495) = | J40: =H5 -> 16 | K40: kN
I42: =CONCATENATE("Sx = S∙cos(ε) = ",FIXED(J40),"xcos(",E6,") =") -> Sx = S∙cos(ε) = 16,00xcos(10,00) = | J42: =J40*COS(E7) -> 15.75692405 | K42: kN
I43: =CONCATENATE("y = h/3 = ",FIXED(J6),"/2=") -> y = h/3 = 3,90/2= | J43: =J5/2 -> 1.95 | K43: m
I45: =CONCATENATE("Ssy = Ss∙sen(ε) = ",FIXED(J40),"xsen(",E6,") =") -> Ssy = Ss∙sen(ε) = 16,00xsen(10,00) = | J45: =J40*SIN(E7) -> 2.778370843 | K45: kN
I46: =CONCATENATE("x = a+b+c/2 = ",FIXED(L6),"+",M6,"+",FIXED(N6),"/2 =") -> x = a+b+c/2 = 0,00+0,00+0,00/2 = | J46: =L5+M5+N5 -> 0 | K46: m

Sheet tabelle (hidden)
B2: Tab. 6.2.I – Coefficienti parziali per le azioni o per l’effetto delle azioni
C3: Effetto | D3: Coefficiente Parziale γF (o γE) | E3: EQU | F3: (A1) | G3: (A2)
B4: Carichi permanenti G₁ | C4: Favorevole | D4: γG1 | E4: 0.9 | F4: 1 | G4: 1
C5: Sfavorevole | E5: 1.1 | F5: 1.3 | G5: 1
B6: Carichi permanenti G2 (1) | C6: Favorevole | D6: γG2 | E6: 0.8 | F6: 0.8 | G6: 0.8
C7: Sfavorevole | E7: 1.5 | F7: 1.5 | G7: 1.3
B8: Azioni variabili Q | C8: Favorevole | D8: γQi | E8: 0 | F8: 0 | G8: 0
C9: Sfavorevole | E9: 1.5 | F9: 1.5 | G9: 1.3
B10: (1) Per i carichi permanenti G2 si applica quanto indicato alla Tabella 2.6.I. Per la spinta delle terre si fa riferimento ai coefficienti γG1
B12: Tab. 6.2.II – Coefficienti parziali per i parametri geotecnici del terreno
B13: Parametro | C13: Grandezza alla quale applicare il coefficiente parziale | D13: Coefficiente parziale γM | E13: (M1) | F13: (M2)
B14: Tangente dell’angolo di resistenza al taglio | C14: tan ϕ′k | D14: γϕ′ | E14: 1 | F14: 1.25
B15: Coesione efficace | C15: c′k | D15: γc′ | E15: 1 | F15: 1.25
B16: Resistenza non drenata | C16: cuk | D16: γcu | E16: 1 | F16: 1.4
B17: Peso dell’unità di volume | C17: γγ | D17: γγ | E17: 1 | F17: 1
B19: Tab. 6.5.I - Coefficienti parziali γR per le verifiche agli stati limite ultimi di muri di sostegno
B20: Verifica | C20: Coefficiente parziale (R3)
B21: Capacità portante della fondazione | C21: γR = 1,4
B22: Scorrimento | C22: γR = 1,1
B23: Ribaltamento | C23: γR = 1,15
B24: Resistenza del terreno a valle | C24: γR = 1,4

Sheet Foglio4 (hidden)
A1: peso di volume in Kg/m3 | G1: angolo di attrito | K1: coesione in Kg/cm2 | N1: modulo elastico, in Kg/cm2 | R1: coefficiente di Poisson
A2: Terreno | B2: Massa Volumica | D2: Peso Specifico | G2: Terreno | H2: Valore | I2: Valore | K2: Terreno | L2: cuk | N2: Terreno | O2: E | P2: E | R2: Terreno | S2: ν
B3: kg/m³ | C3: kg/m³ | D3: kN/m³ | E3: kN/m³ | H3: min. | I3: max. | O3: min. | P3: max. | S3: min. | T3: max.
B4: min | C4: max | D4: min | E4: max | G4: Ghiaia compatta | H4: 35 | I4: 35 | K4: Argilla molle | L4: 0.10 | N4: Argilla molto molle | O4: 153 | P4: 20.4 | R4: Argilla satura | S4: 0.4 | T4: 0.5
A5: Ghiaia asciutta | B5: 1800 | C5: 2000 | D5: =B5/100 -> 18 | E5: =C5/100 -> 20 | G5: Ghiaia sciolta | H5: 34 | I5: 35 | K5: Argilla plastica | L5: 0.25 | N5: Argilla molle | O5: 255 | P5: 51 | R5: Argilla non satura | S5: 0.1 | T5: 0.3
A6: Ghiaia umida | B6: 1900 | C6: 2100 | D6: =B6/100 -> 19 | E6: 21 | G6: Sabbia compatta | H6: 35 | I6: 45 | K6: Argilla semisolida | L6: 0.50 | N6: Argilla media | O6: 510 | P6: 153 | R6: Argilla sabbiosa | S6: 0.2 | T6: 0.3
A7: Sabbia asciutta compatta | B7: 1700 | C7: 2000 | D7: 17 | E7: 20 | G7: Sabbia sciolta | H7: 25 | I7: 35 | K7: Argilla solida | L7: 1 | N7: Argilla dura | O7: 1020 | P7: 510 | R7: Limo | S7: 0.3 | T7: 0.35
A8: Sabbia umida compatta | B8: 1900 | C8: 2100 | D8: 19 | E8: 21 | G8: Marna sabbiosa | H8: 22 | I8: 29 | K8: Argilla tenace | L8: 2÷10 | N8: Argilla sabbiosa | O8: 2550 | P8: 255 | R8: Sabbia | S8: -0.1 | T8: 1.0
A9: Sabbia bagnata compatta | B9: 2000 | C9: 2200 | D9: 20 | E9: 22 | G9: Marna grassa | H9: 16 | I9: 22 | K9: Argilla sabbiosa | L9: 0.20 | N9: Loess | O9: 612 | P9: 153 | R9: Sabbia ghiaiosa comunemente usata | S9: 0.3 | T9: 0.4
A10: Sabbia asciutta sciolta | B10: 1500 | C10: 1800 | D10: 15 | E10: 18 | G10: Argilla grassa | H10: 0 | I10: 30 | K10: Limo compatto | L10: 0.10 | N10: Sabbia limosa | O10: 204 | P10: 51 | R10: Loess | S10: 0.1 | T10: 0.3
A11: Sabbia umida sciolta | B11: 1600 | C11: 1900 | D11: 16 | E11: 19 | G11: Argilla sabbiosa | H11: 16 | I11: 28 | N11: Sabbia sciolta | O11: 255 | P11: 102 | R11: Ghiaccio | T11: 0.36
A12: Sabbia bagnata sciolta | B12: 1900 | C12: 2100 | D12: 19 | E12: 21 | G12: Limo | H12: 20 | I12: 27 | N12: Sabbia compatta | O12: 816 | P12: 510 | R12: Calcestruzzo | T12: 0.15
A13: Argilla sabbiosa | B13: 1800 | C13: 2200 | D13: 18 | E13: 22 | N13: Argilloscisto | O13: 51000 | P13: 1530
A14: Argilla dura | B14: 2000 | C14: 2100 | D14: 20 | E14: 21 | N14: Limo | O14: 204 | P14: 20.4
A15: Argilla semisolida | B15: 1900 | C15: 1950 | D15: 19 | E15: 19.5 | N15: Sabbia e ghiaia sciolta | O15: 1530 | P15: 510
A16: Argilla molle | B16: 1800 | C16: 1850 | D16: 18 | E16: 18.5 | N16: Sabbia e ghiaia compatte | O16: 2040 | P16: 1020
A17: Torba | B17: 1000 | C17: 1100 | D17: 10 | E17: 11
B20: Resistenza alla punta con prova CPT | C20: → | D20: Rp
B21: Peso di volume | C21: → | D21: γt,k
B22: Angolo di attrito interno | C22: → | D22: φt
B23: Coesione non drenata | C23: → | D23: Cu
B24: Coeff. di compressibilità volumetrica | C24: → | D24: mv
B25: Resistenza a compressione. | C25: → | D25: σt,k

Sheet Foglio4 (2) (hidden)
A1: Parametri Geotecnici,
A3: Resistenza alla punta con prova CPT | B3: → | C3: Rp
A4: Peso di volume | B4: → | C4: γt,k
A5: Angolo di attrito interno | B5: → | C5: φt,k
A6: Coesione non drenata | B6: → | C6: Cuk
A7: Coeff. di compressibilità volumetrica | B7: → | C7: mv
A8: Resistenza a compressione. | B8: → | C8: σt,k
B10: Massa Volumica | D10: φt,k | F10: Cu | H10: mv | J10: Rp
B11: kg/m³ | C11: kg/m³ | D11: deg. | E11: deg, | F11: N/mm² | G11: N/mm² | H11: mm²/N | I11: mm²/N | J11: N/mm² | K11: N/mm²
A12: Argilla limosa torbosa | B12: 1450 | C12: 1650 | D12: - | E12: - | F12: 0.005 | G12: 0.03 | H12: 0.4 | I12: 0.7 | J12: 0.2 | K12: 0.6
A13: Sabbia e sabbia limosa | B13: 1800 | C13: 1900 | D13: 27 | E13: 28 | F13: - | G13: - | H13: 0.03 | I13: 0.08 | J13: 3 | K13: 10
A14: Argilla limosa | B14: 1700 | C14: 1900 | D14: - | E14: - | F14: 0.07 | G14: 0.12 | H14: 0.1 | I14: 0.18 | J14: 1.5 | K14: 3.5
A15: Sabbia limosa | B15: 1750 | C15: 1850 | D15: 28 | E15: 32 | F15: 0.05 | G15: 0.05 | H15: 0.1 | I15: 0.2 | J15: 1.5 | K15: 5
A16: Sabbia e limo con ciottoli | B16: 1850 | C16: 1950 | D16: 30 | E16: 35 | F16: 0.1 | G16: 0.1 | H16: 0.04 | I16: 0.1 | J16: 4 | K16: 7
A17: Argilla sabbiosa ed argille limose | B17: 1900 | C17: 2100 | D17: - | E17: - | F17: 0.05 | G17: 0.1 | H17: 0.15 | I17: 0.2 | J17: 1 | K17: 2.5
A18: Sabbia fine | B18: 1900 | C18: 1950 | D18: 32 | E18: 38 | F18: - | G18: - | H18: 0.03 | I18: 0.05 | J18: 5 | K18: 1
A19: Argilla e marna argillosa | B19: 1900 | C19: 1950 | D19: - | E19: - | F19: 0.06 | G19: 0.15 | H19: 0.1 | I19: 0.2 | J19: 1.5 | K19: 4
A20: Ghiaia | B20: 1800 | C20: 2000 | D20: 35 | E20: 40 | F20: - | G20: - | H20: - | I20: - | J20: >50 | K20: rifiuto
A22: Prove penetrometriche CPT Le prove penetrometriche statiche costituiscono uno standard ormai consolidato nell’indagine in terreni coesivi come limi e argille e in terreni limosi-sabbiosi. La profondità d’indagine è variabile, dipende dalla resistenza dei terreni incontrati e dalla presenza di orizzonti ghiaiosi e/o litoidi, che ne limitano o ne impediscono l’esecuzione. La prova consiste nell’infiggere verticalmente nel terreno una doppia batteria di aste alla cui estremità inferiore è collegata una punta telescopica tipo Begemann, che permette di rilevare ogni 20 cm la resistenza alla punta e la resistenza alla punta + manicotto laterale. I dati acquisiti, oltre a restituire una dettagliata stratigrafia, possono fornire, tramite formule di correlazione, indicazioni su numerosi parametri geotecnici. Le indagini penetrometriche possono essere integrate con analisi di laboratorio sui campioni di terreno indisturbati.
A24: Massa Volumiva apparente è il peso dell’unità di volume di un campione di terra allo stato naturale e quindi comprende il peso dei granuli, dell’aria e dell’acqua presenti nella terra; varia in funzione della quantità di acqua contenuta nei pori
A26: Massa Volumiva Reale è il rapporto tra il peso dei suoi granuli non considerando i vuoti dei pori, e il peso di un uguale volume di acqua a 4 °C e viene determinato con un apparecchio detto picnometro,
A28: Coesione: è la forza di adesione dei granuli di terra uno con l’altro, (indica la resistenza al taglio) contrasta la forza che tende a far muovere le particelle di terra una sull’altra. La determinazione diretta della resistenza a taglio τ di una terra viene effettuata in laboratorio tramite l’apparecchio di Casagrande,
A30: angolo di attrito indica la resistenza allo scorrimento delle particelle di terra le une sulle altre, dipende dalle forze che agiscono perpendicolarmente alla superficie di aderenza,
